bitfinex/quotes_SOLUSD_20260118
["timestamp","ask_amount","ask_price","bid_price","bid_amount"]
[1768761057649,11.27166843,142.67,142.63,4.22816437]
[1768761057855,11.27166843,142.67,142.63,6.34216167]
[1768761058243,11.27166843,142.67,142.63,4.22816437]
[1768761059958,6.37603322,142.68,142.64,4.22816437]
[1768761060260,4.26203592,142.68,142.64,4.22816437]
[1768761060443,6.37603322,142.69,142.64,6.34216167]
[1768761060645,4.26203592,142.68,142.64,4.22816437]
[1768761060847,4.26203592,142.67,142.64,4.22816437]
[1768761061249,4.26203592,142.67,142.63,4.22816437]
[1768761061448,11.27157853,142.67,142.63,6.34216167]
[1768761061647,11.27157853,142.67,142.64,4.22816437]
[1768761062259,4.26203592,142.67,142.64,4.22816437]
[1768761064564,4.26203592,142.69,142.66,4.22816437]
[1768761065449,11.27038336,142.69,142.66,4.22816437]
[1768761066143,4.26203592,142.68,142.64,13.35263924]
[1768761066549,11.27038336,142.69,142.65,4.22816437]
[1768761066944,4.26203592,142.69,142.65,4.22816437]
[1768761067549,4.26203592,142.69,142.65,11.23795263]
[1768761068550,4.26203592,142.69,142.66,4.22816437]
[1768761069246,4.26203592,142.7,142.66,4.22816437]
[1768761069468,6.37603322,142.7,142.66,4.22816437]
[1768761069670,6.37603322,142.7,142.66,11.2376934]
[1768761069972,4.26203592,142.69,142.66,11.2376934]
[1768761070275,4.26203592,142.69,142.66,7.00952903]
[1768761070770,6.37603322,142.69,142.66,7.00952903]
[1768761071145,4.26203592,142.69,142.66,7.00952903]
[1768761072460,4.26203592,142.69,142.65,11.2381634]
[1768761073850,4.26203592,142.68,142.65,7.00999903]
[1768761074051,4.26203592,142.68,142.65,7.01015377]
[1768761075374,4.26203592,142.68,142.65,11.23831814]
[1768761076089,11.26977937,142.7,142.66,4.22816437]
[1768761076372,11.26977937,142.7,142.66,6.34216167]
[1768761076577,13.38377667,142.7,142.66,4.22816437]
[1768761078173,4.26203592,142.69,142.66,4.22816437]
[1768761078365,11.27033007,142.69,142.65,11.23831814]
[1768761078569,11.26988357,142.7,142.66,4.22816437]
[1768761079080,13.38388087,142.7,142.66,4.22816437]
[1768761080359,11.26988357,142.7,142.66,4.22816437]
[1768761081164,4.26203592,142.69,142.66,4.22816437]
[1768761081479,7.00784765,142.7,142.67,4.22816437]
[1768761081859,11.26988357,142.7,142.67,4.22816437]
[1768761082176,13.38388087,142.7,142.66,4.22816437]
[1768761082749,4.26203592,142.68,142.64,11.44790977]
[1768761082955,4.26203592,142.68,142.64,4.43735052]
[1768761083160,4.26203592,142.68,142.64,11.44794115]
[1768761085976,6.37595793,142.68,142.64,11.44794115]
[1768761087572,4.26203592,142.68,142.65,4.43735052]
[1768761090270,4.26203592,142.68,142.65,11.44724662]
[1768761090577,13.38445698,142.69,142.66,4.43735052]
[1768761091682,7.00786909,142.7,142.67,4.43735052]
[1768761092279,11.26990501,142.7,142.67,4.43735052]
[1768761092470,13.38382702,142.7,142.66,11.44694268]
[1768761092677,13.38382702,142.7,142.66,4.43735052]
[1768761094087,11.26990501,142.7,142.66,4.43735052]
[1768761094469,13.38382702,142.7,142.66,4.43735052]
[1768761097186,4.26203592,142.68,142.64,11.28598583]
[1768761097364,4.26203592,142.68,142.64,4.27549167]
[1768761097787,4.26203592,142.68,142.65,4.27549167]
[1768761098191,4.26203592,142.69,142.65,4.27549167]
[1768761098499,6.37595793,142.69,142.65,4.27549167]
[1768761098871,13.38463103,142.69,142.65,4.27549167]
[1768761099476,11.27070902,142.69,142.65,4.27549167]
[1768761099810,13.38463103,142.69,142.65,4.27549167]
[1768761100178,4.26203592,142.68,142.65,4.27549167]
[1768761100490,4.26203592,142.68,142.64,4.27549167]
[1768761100878,6.37595793,142.68,142.64,4.27549167]
[1768761102202,13.38503376,142.68,142.64,4.27549167]
[1768761103968,4.26203592,142.67,142.64,4.27549167]
[1768761104194,6.37595793,142.67,142.63,4.27549167]
[1768761104392,4.26203592,142.66,142.63,4.27549167]
[1768761104683,6.37595793,142.66,142.63,4.27549167]
[1768761105876,13.38600531,142.66,142.63,4.27549167]
[1768761106797,4.26203592,142.63,142.6,4.27549167]
[1768761106987,6.37595793,142.63,142.6,4.27549167]
[1768761107392,6.37595793,142.63,142.59,4.27549167]
[1768761107604,6.37595793,142.61,142.58,4.27549167]
[1768761107894,13.38848311,142.61,142.57,4.27549167]
[1768761108289,11.2745611,142.61,142.57,11.28954309]
[1768761108494,11.27383406,142.62,142.58,4.27549167]
[1768761108706,13.38775607,142.62,142.58,4.27549167]
[1768761108898,4.26203592,142.61,142.57,4.27549167]
[1768761109592,11.27383406,142.62,142.58,4.27549167]
[1768761109798,13.38775607,142.62,142.58,4.27549167]
[1768761110000,6.37595793,142.61,142.58,4.27549167]
[1768761111582,13.38856805,142.61,142.57,4.27549167]
[1768761111777,4.26203592,142.6,142.57,4.27549167]
[1768761112200,6.37595793,142.6,142.57,4.27549167]
[1768761112708,4.26203592,142.6,142.57,4.27549167]
[1768761113798,11.21485595,142.6,142.57,4.27549167]
[1768761114096,13.32877796,142.6,142.57,4.27549167]
[1768761114881,17.5290983,142.62,142.57,4.27549167]
[1768761114882,7.01227206,142.61,142.57,4.27549167]
[1768761115083,2.11392201,142.62,142.58,4.10092959]
[1768761115704,2.11392201,142.61,142.58,4.10092959]
[1768761116002,6.31655794,142.62,142.58,4.10092959]
[1768761116793,13.32868892,142.61,142.58,4.10092959]
[1768761116994,7.01213098,142.61,142.58,4.10092959]
[1768761117193,9.12605299,142.61,142.58,4.10092959]
[1768761117393,13.32868892,142.61,142.57,4.10092959]
[1768761118791,2.11392201,142.59,142.56,4.10092959]
[1768761119302,4.20263593,142.58,142.54,17.47392201]
[1768761119608,4.20263593,142.58,142.54,15.36]
[1768761119811,4.20263593,142.58,142.55,4.10092959]
[1768761120214,6.31655794,142.59,142.55,4.10092959]
[1768761120515,2.11392201,142.56,142.51,51.2169346]
[1768761120808,2.11392201,142.55,142.52,4.10092959]
[1768761121013,11.21703606,142.57,142.53,4.10092959]
[1768761121306,2.11392201,142.56,142.53,4.10092959]
[1768761121715,7.01440013,142.57,142.53,4.10092959]
[1768761121916,2.11392201,142.59,142.55,4.10092959]
[1768761122794,7.01327003,142.59,142.55,4.10092959]
[1768761123020,7.01327003,142.59,142.56,4.10092959]
[1768761124313,9.12654473,142.6,142.56,4.10092959]
[1768761126123,7.01262272,142.6,142.56,4.10092959]
[1768761127319,9.12654473,142.6,142.56,4.10092959]
[1768761128128,13.32918066,142.6,142.56,4.10092959]
[1768761128421,6.31655794,142.58,142.54,4.10092959]
[1768761129234,4.20263593,142.58,142.54,4.10092959]
[1768761129434,6.31655794,142.58,142.54,4.10092959]
[1768761130126,2.11392201,142.59,142.54,6.2148516]
[1768761130320,2.11392201,142.59,142.55,4.10092959]
[1768761130735,2.11392201,142.59,142.52,51.21636518]
[1768761131023,6.34855121,142.59,142.54,2.11392201]
[1768761132026,28.77880872,142.6,142.56,2.11392201]
[1768761132335,6.34855121,142.59,142.5,59.56]
[1768761132520,2.11392201,142.58,142.53,2.11392201]
[1768761132715,6.34855121,142.58,142.53,2.11392201]
[1768761132913,6.34855121,142.58,142.54,4.10092959]
[1768761133315,13.36240152,142.58,142.54,4.10092959]
[1768761133749,6.34855121,142.57,142.54,4.10092959]
[1768761133948,7.01385031,142.58,142.49,7.21793171]
[1768761133949,4.2346292,142.54,142.49,7.21793171]
[1768761134250,6.28855122,142.54,142.49,4.30092959]
[1768761134625,24.5478663,142.58,142.51,2.11392201]
[1768761134926,2.11392201,142.57,142.52,4.10092959]
[1768761135131,2.11392201,142.57,142.52,6.2148516]
[1768761135330,7.01459034,142.56,142.53,4.10092959]
[1768761136132,9.12851235,142.56,142.53,4.10092959]
[1768761136523,11.24921954,142.56,142.53,4.10092959]
[1768761137627,13.36314155,142.56,142.53,4.10092959]
[1768761138742,13.36314155,142.56,142.52,4.10092959]
[1768761139746,13.36314155,142.56,142.52,6.2148516]
[1768761141244,11.24921954,142.56,142.52,6.2148516]
[1768761142417,11.24921954,142.56,142.53,4.25129713]
[1768761142624,7.01459034,142.56,142.54,4.25129713]
[1768761143145,7.01459034,142.56,142.53,2.11721278]
[1768761144146,7.01459034,142.56,142.51,7.01703177]
[1768761144438,7.01459034,142.56,142.53,2.11721278]
[1768761144657,7.01459034,142.56,142.51,7.01703177]
[1768761144876,11.07541979,142.56,142.5,51.21735968]
[1768761145044,4.06082945,142.55,142.51,4.25129713]
[1768761145563,4.06082945,142.55,142.51,6.36850991]
[1768761146238,11.07541979,142.56,142.52,6.36850991]
[1768761147022,4.06082945,142.55,142.52,6.36850991]
[1768761147223,4.06082945,142.55,142.52,4.25129713]
[1768761147441,4.06082945,142.55,142.52,6.36850991]
[1768761147646,11.07541979,142.56,142.52,6.36850991]
[1768761148651,4.06082945,142.55,142.52,4.25129713]
[1768761148854,11.07624833,142.55,142.52,4.25129713]
[1768761149259,7.01541888,142.55,142.52,6.36850991]
[1768761149445,11.07624833,142.55,142.52,6.36850991]
[1768761150439,11.07624833,142.55,142.52,4.25129713]
[1768761150639,11.07624833,142.55,142.52,6.36850991]
[1768761151862,11.07624833,142.55,142.52,4.25129713]
[1768761153857,11.07624833,142.55,142.52,6.36850991]
[1768761155163,11.07624833,142.55,142.52,4.25129713]
[1768761155563,11.07624833,142.55,142.52,6.36850991]
[1768761156269,11.07624833,142.55,142.52,4.25129713]
[1768761157679,4.3946014,142.54,142.5,46.31721278]
[1768761157876,4.3946014,142.54,142.5,50.76199331]
[1768761158585,4.3946014,142.54,142.51,4.44478053]
[1768761159683,4.3946014,142.54,142.5,55.66230992]
[1768761159684,4.3946014,142.53,142.5,55.66230992]
[1768761159893,4.3946014,142.53,142.5,4.44478053]
[1768761160866,4.3946014,142.53,142.49,66.32199331]
[1768761161882,4.3946014,142.52,142.49,46.51721278]
[1768761162080,4.3946014,142.52,142.49,44.4]
[1768761162470,4.3946014,142.52,142.49,0.2]
[1768761162666,4.3946014,142.52,142.49,2.31721278]
[1768761163372,4.3946014,142.52,142.49,0.2]
[1768761163779,4.3946014,142.51,142.49,0.2]
[1768761163984,4.33460141,142.51,142.49,0.2]
[1768761166193,4.33460141,142.51,142.49,2.31721278]
[1768761168089,4.27460142,142.51,142.49,2.31721278]
[1768761168292,4.21460143,142.51,142.49,2.31721278]
[1768761168788,4.21460143,142.51,142.49,0.2]
[1768761171780,11.23176739,142.51,142.49,0.2]
[1768761173200,4.39198144,142.5,142.48,0.2]
[1768761173399,4.33198145,142.5,142.48,0.2]
[1768761174798,17.53907114,142.54,142.48,6.6050136]
[1768761175006,2.11721278,142.53,142.48,6.6050136]
[1768761175383,11.40893189,142.52,142.48,6.6050136]
[1768761176401,11.40839032,142.53,142.5,4.28780082]
[1768761180513,4.39198144,142.52,142.49,4.28780082]
[1768761180694,6.50919422,142.52,142.48,11.5063267]
[1768761181103,4.39198144,142.52,142.48,11.5063267]
[1768761181394,4.39198144,142.52,142.49,4.28780082]
[1768761182908,4.33198145,142.52,142.49,4.28780082]
[1768761183210,24.55118683,142.56,142.5,4.28780082]
[1768761183401,2.11721278,142.54,142.5,4.28780082]
[1768761184209,24.55118683,142.56,142.5,4.28780082]
[1768761184400,9.13311381,142.54,142.5,4.28780082]
[1768761184812,13.52509525,142.54,142.5,4.28780082]
[1768761185911,4.39198144,142.53,142.5,4.28780082]
[1768761186519,4.39198144,142.52,142.49,4.28780082]
[1768761186704,4.39198144,142.51,142.48,44.4]
[1768761186895,4.39198144,142.51,142.48,4.48780082]
[1768761188408,11.40904813,142.51,142.48,4.48780082]
[1768761190010,4.39198144,142.5,142.48,0.2]
[1768761190212,4.33198145,142.5,142.48,0.2]
[1768761190390,4.27198146,142.5,142.48,0.2]
[1768761190592,11.28958489,142.5,142.48,0.2]
[1768761191911,4.27198146,142.5,142.48,0.2]
[1768761192115,9.13438204,142.51,142.48,4.48780082]
[1768761192503,13.52636348,142.51,142.48,4.48780082]
[1768761193018,11.4091507,142.51,142.48,4.48780082]
[1768761193498,13.52636348,142.51,142.48,4.48780082]
[1768761193908,11.40967491,142.5,142.48,0.2]
[1768761194105,11.34967492,142.5,142.48,0.2]
[1768761197725,11.28967493,142.5,142.48,0.2]
[1768761198442,11.22967494,142.5,142.48,0.2]
[1768761198925,11.16967495,142.5,142.48,0.2]
[1768761201126,7.01769347,142.5,142.48,4.48780082]
[1768761202012,7.01702386,142.52,142.48,4.48780082]
[1768761202216,4.39198144,142.54,142.51,4.28780082]
[1768761205146,11.40774758,142.54,142.51,4.28780082]
[1768761205440,11.3228438,142.54,142.51,4.28780082]
[1768761209754,4.26358182,142.53,142.5,4.02161093]
[1768761210651,4.26358182,142.52,142.49,4.02161093]
[1768761212056,4.26358182,142.51,142.48,26.62003688]
[1768761213347,11.2802732,142.52,142.49,4.02161093]
[1768761214254,11.2802732,142.52,142.48,26.62003688]
[1768761216759,11.2802732,142.52,142.49,4.06040943]
[1768761217058,4.26358182,142.52,142.49,4.06040943]
[1768761217231,11.21386519,142.54,142.51,4.06040943]
[1768761217433,4.19829062,142.53,142.5,6.17819047]
[1768761217655,4.19829062,142.53,142.5,4.06040943]
[1768761218329,11.21445856,142.53,142.5,4.06040943]
[1768761218535,4.19829062,142.53,142.5,4.06040943]
[1768761218725,4.19829062,142.52,142.49,11.07830042]
[1768761219663,4.19829062,142.54,142.51,4.06040943]
[1768761220340,4.19829062,142.54,142.51,11.07726758]
[1768761220536,4.19829062,142.57,142.54,4.06040943]
[1768761220742,11.2120397,142.58,142.54,4.06040943]
[1768761221059,4.19829062,142.57,142.54,4.06040943]
[1768761223566,4.19829062,142.57,142.53,9.13354974]
[1768761223567,4.19829062,142.6,142.57,4.06040943]
[1768761223860,4.19829062,142.6,142.55,7.01507687]
[1768761224050,4.19829062,142.6,142.56,2.11778104]
[1768761224971,4.19829062,142.6,142.56,9.13223295]
[1768761225840,4.19829062,142.6,142.56,13.19264238]
[1768761229264,4.19829062,142.6,142.56,11.07486134]
[1768761229949,4.19829062,142.6,142.56,13.19264238]
[1768761231781,4.19829062,142.6,142.57,4.06040943]
[1768761231960,4.19829062,142.6,142.57,11.07447584]
[1768761233176,4.19829062,142.6,142.57,13.19225688]
[1768761233380,3.98594863,142.62,142.59,3.98590593]
[1768761233587,3.98594863,142.63,142.59,2.11778104]
[1768761234456,3.98594863,142.63,142.57,84.10931225]
[1768761234753,3.98594863,142.63,142.59,2.11778104]
[1768761235353,3.98594863,142.63,142.59,9.13081965]
[1768761235571,3.98594863,142.63,142.6,3.98590593]
[1768761235958,10.99715363,142.63,142.6,3.98590593]
[1768761239201,3.98594863,142.62,142.59,3.98590593]
[1768761240297,10.99763209,142.62,142.59,3.98590593]
[1768761240602,3.98594863,142.61,142.57,70.55999598]
[1768761240807,3.98594863,142.6,142.57,44.2]
[1768761240981,3.98594863,142.6,142.56,11.0001836]
[1768761241186,3.98594863,142.6,142.56,13.11796464]
[1768761241583,3.98594863,142.6,142.57,3.98590593]
[1768761241786,3.98594863,142.61,142.58,3.98590593]
[1768761242196,10.99824398,142.61,142.58,3.98590593]
[1768761244110,3.98594863,142.62,142.59,3.98590593]
[1768761244291,3.98594863,142.62,142.59,6.10368697]
[1768761244898,3.98594863,142.62,142.59,3.98590593]
[1768761245096,3.98594863,142.63,142.6,3.98590593]
[1768761246793,3.98594863,142.63,142.6,3.95590593]
[1768761248611,3.98594863,142.63,142.6,6.07368697]
[1768761250217,0.1,142.67,142.61,6.10368697]
[1768761250415,4.08594863,142.71,142.66,2.11778104]
[1768761250602,4.08594863,142.71,142.64,15.36]
[1768761251112,4.08594863,142.71,142.67,2.11778104]
[1768761251594,4.08594863,142.71,142.68,2.11778104]
[1768761251794,4.08594863,142.71,142.68,9.12642978]
[1768761251989,4.08594863,142.71,142.68,7.00864874]
[1768761252299,4.08594863,142.71,142.68,9.12642978]
[1768761253032,4.08594863,142.71,142.65,24.53478894]
[1768761253519,4.08594863,142.71,142.67,2.11778104]
[1768761254215,4.08594863,142.71,142.67,9.12680017]
[1768761254408,4.08594863,142.71,142.67,7.00901913]
[1768761254607,4.08594863,142.71,142.67,9.12680017]
[1768761255126,4.08594863,142.71,142.67,13.1127061]
[1768761255608,4.08594863,142.71,142.68,2.11778104]
[1768761258119,4.08594863,142.71,142.67,10.99492506]
[1768761258327,4.08594863,142.71,142.68,2.11778104]
[1768761258714,4.08594863,142.71,142.67,10.99492506]
[1768761259026,4.08594863,142.71,142.68,2.11778104]
[1768761260113,4.08594863,142.71,142.67,10.99492506]
[1768761260306,3.98594863,142.7,142.67,6.10368697]
[1768761261231,3.98594863,142.7,142.67,3.98590593]
[1768761261604,3.98594863,142.7,142.65,7.01002889]
[1768761261605,3.98594863,142.69,142.65,7.01002889]
[1768761262035,3.98594863,142.69,142.65,9.12780993]
[1768761262810,4.24846785,142.68,142.65,9.12780993]
[1768761263128,4.24846785,142.68,142.64,55.19652261]
[1768761263427,4.24846785,142.68,142.65,2.11778104]
[1768761263730,4.24846785,142.68,142.64,55.19652261]
[1768761264211,4.24846785,142.68,142.64,57.31430365]
[1768761264536,4.24846785,142.68,142.65,2.11778104]
[1768761265043,4.24846785,142.68,142.66,2.11356734]
[1768761265218,4.24846785,142.68,142.66,2.08356734]
[1768761265420,4.24846785,142.68,142.65,2.11356734]
[1768761265926,4.24846785,142.68,142.65,6.34900196]
[1768761266320,4.24846785,142.68,142.65,4.23543462]
[1768761266524,4.24846785,142.68,142.65,13.35915588]
[1768761266916,4.24846785,142.68,142.64,53.32412103]
[1768761267302,4.24846785,142.68,142.64,57.55955565]
[1768761268130,4.24846785,142.67,142.64,55.44598831]
[1768761268632,4.24846785,142.67,142.64,11.24598831]
[1768761269845,15.46,142.71,142.65,4.23543462]
[1768761270055,4.34846785,142.71,142.67,4.23543462]
[1768761270225,4.24846785,142.7,142.65,11.2455534]
[1768761270426,4.24846785,142.7,142.67,6.34900196]
[1768761270824,4.24846785,142.7,142.67,4.23543462]
[1768761271034,4.24846785,142.7,142.67,6.34900196]
[1768761271752,4.24846785,142.7,142.68,2.11356734]
[1768761272822,0.1,142.71,142.68,2.11356734]
[1768761273036,0.1,142.71,142.69,6.34900196]
[1768761273548,0.1,142.71,142.68,13.35746801]
[1768761274943,0.1,142.71,142.68,11.24390067]
[1768761275247,0.1,142.71,142.68,13.35746801]
[1768761277247,4.30151654,142.71,142.68,11.24390067]
[1768761277547,4.30151654,142.71,142.68,13.35746801]
[1768761278450,4.30151654,142.71,142.68,11.24390067]
[1768761280654,4.20151654,142.72,142.69,4.14733647]
[1768761282371,1.1315,142.73,142.7,4.14733647]
[1768761282659,1.1315,142.73,142.71,4.14733647]
[1768761283257,1.1315,142.73,142.7,4.14733647]
[1768761284362,1.1315,142.73,142.7,11.15490019]
[1768761285181,4.20151654,142.72,142.68,6.26090381]
[1768761285681,14.45283549,142.73,142.69,11.15547669]
[1768761285972,7.44658388,142.73,142.69,11.15547669]
[1768761287452,5.33301654,142.73,142.69,11.15547669]
[1768761287653,7.44658388,142.73,142.69,11.15547669]
[1768761290074,4.20151654,142.72,142.68,7.00860511]
[1768761290383,4.20151654,142.71,142.68,7.00860511]
[1768761292081,4.20151654,142.71,142.68,11.15594158]
[1768761292869,4.20151654,142.71,142.67,11.14420399]
[1768761293087,4.20151654,142.71,142.68,7.00868774]
[1768761293876,3.92895234,142.69,142.65,13.25862829]
[1768761294194,3.92895234,142.67,142.63,11.1458941]
[1768761294367,6.04251968,142.67,142.63,11.1458941]
[1768761294569,6.04251968,142.67,142.61,61.72978561]
[1768761294570,3.92895234,142.65,142.61,11.14697583]
[1768761295770,3.92895234,142.66,142.62,6.24876052]
[1768761296468,9.12287452,142.67,142.63,4.13519318]
[1768761296469,13.05182686,142.67,142.63,4.13519318]
[1768761296865,3.92895234,142.66,142.63,4.13519318]
[1768761297377,3.92895234,142.66,142.62,11.14668148]
[1768761297613,3.92895234,142.65,142.62,7.0114883]
[1768761298498,3.92895234,142.65,142.62,11.14668148]
[1768761299104,3.92895234,142.65,142.61,11.14716114]
[1768761299319,6.04251968,142.65,142.61,11.14716114]
[1768761299521,6.04251968,142.65,142.61,13.26072848]
[1768761300136,6.04251968,142.65,142.61,11.14716114]
[1768761300524,3.92895234,142.64,142.6,11.14764478]
[1768761300837,2.11356734,142.63,142.59,11.14822968]
[1768761301010,7.01018526,142.65,142.61,4.13519318]
[1768761301209,22.36983697,142.66,142.61,4.13519318]
[1768761301424,7.00983697,142.66,142.61,4.13519318]
[1768761301624,2.11356734,142.65,142.61,4.13519318]
[1768761302129,7.00983697,142.66,142.61,4.13519318]
[1768761302430,2.11356734,142.65,142.61,4.13519318]
[1768761302738,6.04251968,142.65,142.61,11.14718155]
[1768761304451,3.92895234,142.65,142.62,4.13519318]
[1768761304744,3.92895234,142.66,142.62,4.13519318]
[1768761304912,3.72895234,142.66,142.65,0.2]
[1768761306125,10.73862568,142.66,142.65,0.2]
[1768761306326,12.85219302,142.66,142.65,0.2]
[1768761306946,12.85219302,142.66,142.62,7.01163061]
[1768761307145,3.92895234,142.65,142.62,4.13519318]
[1768761307345,6.04251968,142.65,142.62,4.13519318]
[1768761307719,9.12324068,142.66,142.62,11.14679127]
[1768761307947,3.92895234,142.68,142.64,4.13519318]
[1768761308146,6.04251968,142.67,142.64,4.13519318]
[1768761310145,13.05180411,142.67,142.63,11.14626399]
[1768761310353,13.05180411,142.67,142.63,4.13519318]
[1768761310853,2.11356734,142.66,142.62,48.33519318]
[1768761311060,3.92895234,142.64,142.62,44.2]
[1768761311247,3.92895234,142.64,142.61,55.34713733]
[1768761311427,6.04251968,142.64,142.6,11.34780014]
[1768761312456,3.92895234,142.62,142.6,0.2]
[1768761312753,6.04251968,142.63,142.6,0.2]
[1768761313875,6.04251968,142.62,142.6,0.2]
[1768761314581,3.92895234,142.61,142.6,0.2]
[1768761314784,3.86895235,142.61,142.6,0.2]
[1768761315765,2.11356734,142.61,142.57,55.34923876]
[1768761316161,7.01166804,142.62,142.57,4.13519318]
[1768761316368,2.11356734,142.6,142.57,4.13519318]
[1768761316558,9.12631921,142.6,142.56,48.53519318]
[1768761316758,3.92895234,142.59,142.56,44.4]
[1768761316959,6.04251968,142.59,142.56,44.4]
[1768761317180,3.92895234,142.59,142.56,44.4]
[1768761317565,6.04251968,142.59,142.56,44.4]
[1768761317782,3.92895234,142.59,142.56,44.4]
[1768761318694,3.92895234,142.58,142.56,44.4]
[1768761318903,3.92895234,142.58,142.56,0.2]
[1768761321288,6.00926302,142.58,142.56,0.2]
[1768761321489,3.89569568,142.58,142.56,0.2]
[1768761322201,9.12723141,142.58,142.56,0.2]
[1768761323281,13.19546185,142.58,142.56,0.2]
[1768761324304,7.01366407,142.58,142.56,4.41769207]
[1768761324505,7.01327239,142.59,142.56,4.41769207]
[1768761324884,9.12989143,142.59,142.56,4.41769207]
[1768761325081,13.19812187,142.59,142.56,4.41769207]
[1768761325505,4.06823044,142.61,142.56,4.41769207]
[1768761325713,6.18484948,142.61,142.56,4.41769207]
[1768761326093,13.19716348,142.61,142.56,4.41769207]
[1768761327614,2.11661904,142.6,142.56,4.41769207]
[1768761327812,2.11661904,142.6,142.57,4.21769207]
[1768761328899,13.19716348,142.61,142.57,4.21769207]
[1768761330010,2.11661904,142.61,142.58,4.21769207]
[1768761331108,13.19659236,142.62,142.58,4.21769207]
[1768761331423,7.01065619,142.64,142.58,13.3477658]
[1768761331605,13.19550567,142.64,142.6,4.21769207]
[1768761332621,11.07888663,142.64,142.6,4.21769207]
[1768761332809,4.06823044,142.63,142.6,4.21769207]
[1768761336307,6.18484948,142.63,142.6,4.21769207]
[1768761336617,4.06823044,142.63,142.6,4.21769207]
[1768761336994,4.06823044,142.63,142.6,11.23024096]
[1768761345300,9.41713905,142.69,142.63,4.04193423]
[1768761345624,4.07305049,142.68,142.65,4.04193423]
[1768761348439,4.07305049,142.68,142.64,11.05240345]
[1768761348753,11.08176146,142.68,142.64,4.04193423]
[1768761348905,13.1983805,142.68,142.64,4.04193423]
[1768761350033,4.07305049,142.68,142.64,4.04193423]
[1768761350223,6.18966953,142.68,142.64,4.04193423]
[1768761351035,4.07305049,142.68,142.65,4.04193423]
[1768761353429,4.07305049,142.68,142.64,55.11257792]
[1768761354230,4.07305049,142.68,142.65,3.90205552]
[1768761360544,3.99260998,142.69,142.66,3.90205552]
[1768761361824,3.99260998,142.68,142.65,10.91209397]
[1768761364233,3.99260998,142.68,142.65,7.01003845]
[1768761364641,3.99260998,142.68,142.65,10.91209397]
[1768761368318,3.99260998,142.68,142.64,7.01065619]
[1768761368657,3.99260998,142.66,142.63,55.11317919]
[1768761371426,3.99260998,142.65,142.63,44.2]
[1768761371632,3.99260998,142.64,142.61,7.01173933]
[1768761371829,3.99260998,142.64,142.61,10.91379485]
[1768761372642,3.99260998,142.63,142.6,7.01241736]
[1768761372944,3.93260999,142.63,142.6,7.01241736]
[1768761376438,3.93260999,142.63,142.6,13.03109192]
[1768761376749,3.87261,142.63,142.6,13.03109192]
[1768761378046,9.12641423,142.66,142.61,13.03068563]
[1768761379932,3.99260998,142.65,142.61,13.03068563]
[1768761381354,3.99260998,142.65,142.61,10.91406659]
[1768761381557,3.99260998,142.65,142.61,13.03068563]
[1768761382231,3.99260998,142.65,142.59,61.73191242]
[1768761382232,4.20035643,142.67,142.63,3.86289081]
[1768761382633,4.20035643,142.65,142.62,7.01148165]
[1768761382953,4.20035643,142.65,142.61,55.07473088]
[1768761383134,4.20035643,142.65,142.62,3.86289081]
[1768761383748,4.20035643,142.65,142.61,55.07473088]
[1768761386038,2.11661904,142.65,142.61,55.07473088]
[1768761386243,4.20035643,142.64,142.61,55.07473088]
[1768761386446,4.14035644,142.64,142.61,55.07473088]
[1768761386954,2.11503715,142.64,142.61,44.2]
[1768761387657,2.11503715,142.63,142.61,44.2]
[1768761387841,2.11503715,142.64,142.6,7.01248941]
[1768761388154,2.11503715,142.64,142.61,7.01200357]
[1768761388347,6.31539358,142.64,142.61,7.01200357]
[1768761393064,6.25539359,142.64,142.61,7.01200357]
[1768761400973,4.14498527,142.64,142.61,11.10497663]
[1768761401274,6.26002242,142.64,142.61,11.10497663]
[1768761401766,4.14498527,142.64,142.61,11.10497663]
[1768761401965,6.26002242,142.64,142.61,11.10497663]
[1768761404780,2.11503715,142.64,142.61,11.10497663]
[1768761405077,4.14498527,142.63,142.61,11.10497663]
[1768761405780,4.14498527,142.63,142.6,11.1053796]
[1768761407866,4.08498528,142.63,142.6,11.1053796]
[1768761409773,6.20002243,142.63,142.6,11.1053796]
[1768761411171,4.08498528,142.63,142.6,11.1053796]
[1768761420475,6.20002243,142.63,142.6,11.1053796]
[1768761420679,4.18753973,142.6,142.57,55.28020929]
[1768761420865,6.1825769,142.6,142.58,7.01353669]
[1768761421064,2.11503715,142.61,142.58,11.07996908]
[1768761422983,4.18753973,142.62,142.59,4.06643239]
[1768761423184,6.30257688,142.62,142.59,4.06643239]
[1768761423986,4.18753973,142.63,142.59,4.06643239]
[1768761425367,6.30257688,142.64,142.6,4.06643239]
[1768761425883,6.30257688,142.65,142.61,4.06643239]
[1768761426671,4.18753973,142.64,142.61,4.06643239]
[1768761426876,6.30257688,142.64,142.61,4.06643239]
[1768761427256,4.18753973,142.64,142.61,4.06643239]
[1768761429893,4.18753973,142.64,142.61,11.07837874]
[1768761431877,6.30257688,142.64,142.61,11.07837874]
[1768761433068,4.18753973,142.64,142.61,11.07837874]
[1768761433588,6.30257688,142.64,142.61,11.07837874]
[1768761434786,4.18753973,142.64,142.61,11.07837874]
[1768761434990,6.30257688,142.64,142.61,11.07837874]